fUSD/lending_fUSD_20260108
["ID","MTS","AMOUNT","RATE_DAILY","PERIOD"]
[401024284,1767888269468,-323.79068603,0.00032876,120]
[401024285,1767888269542,-1051.66,0.00032876,120]
[401024286,1767888269615,-500.0,0.00032876,120]
[401024287,1767888269686,-737.69413771,0.00032876,120]
[401024288,1767888304742,-383.49282313,0.00010634,2]
[401024289,1767888304766,-116.51822064,0.00010634,2]
[401024290,1767888308430,-120.48177936,0.00010634,2]
[401024291,1767888316853,167.21226931,0.00010527,2]
[401024292,1767888316894,2.12835133,0.00010527,2]
[401024293,1767888333150,-483.16364867,0.00010527,2]
[401024294,1767888333587,-325.85735247,0.00010647,2]
[401024295,1767888333623,-404.75153594,0.00010647,2]
[401024296,1767888333660,-467.01,0.0001074,2]
[401024297,1767888333695,-1026.76992162,0.00010741,2]
[401024298,1767888337564,-250.0,0.00010527,2]
[401024299,1767888337588,-54.05195059,0.00010594,2]
[401024300,1767888340362,-300.0,0.00010527,2]
[401024301,1767888340397,-284.61093499,0.00010562,2]
[401024302,1767888340431,-195.94804941,0.00010594,2]
[401024303,1767888340470,-500.0,0.00010739,2]
[401024304,1767888340509,-500.0,0.00010739,2]
[401024305,1767888340549,-500.0,0.00010739,2]
[401024306,1767888340590,-500.0,0.00010739,2]
[401024307,1767888340628,-500.0,0.00010739,2]
[401024308,1767888340668,-500.0,0.00010739,2]
[401024309,1767888345427,-483.16364867,0.00010739,2]
[401024310,1767888345448,-16.83635133,0.00010739,2]
[401024311,1767888345458,-309.02100114,0.00010739,2]
[401024312,1767888345532,-190.97899886,0.00010739,2]
[401024313,1767888345542,-213.77253708,0.00010739,2]
[401024314,1767888345588,-286.22746292,0.00010739,2]
[401024315,1767888345598,-180.78253708,0.00010739,2]
[401024316,1767888345614,-319.21746292,0.00010739,2]
[401024317,1767888345624,-500.0,0.00010739,2]
[401024318,1767888345634,-207.5524587,0.00010739,2]
[401024319,1767888345649,-292.4475413,0.00010739,2]
[401024320,1767888345659,-500.0,0.00010739,2]
[401024321,1767888345669,-500.0,0.00010739,2]
[401024322,1767888345679,-500.0,0.00010739,2]
[401024323,1767888345692,-500.0,0.00010739,2]
[401024324,1767888345702,-292.4475413,0.00010739,2]
[401024325,1767888347742,-205.92016426,0.00010739,2]
[401024326,1767888347962,-1.63229444,0.00010739,2]
[401024327,1767888347972,-298.36770556,0.00010739,2]
[401024328,1767888347985,-201.63229444,0.00010739,2]
[401024329,1767888347994,-82.97864055,0.00010739,2]
[401024330,1767888348011,-195.94804941,0.00010739,2]
[401024331,1767888348023,-221.07331004,0.00010739,2]
[401024332,1767888348033,-278.92668996,0.00010739,2]
[401024333,1767888348044,-221.07331004,0.00010739,2]
[401024334,1767888348054,-278.92668996,0.00010739,2]
[401024335,1767888348066,-221.07331004,0.00010739,2]
[401024336,1767888348075,-278.92668996,0.00010739,2]
[401024337,1767888348090,-221.07331004,0.00010739,2]
[401024338,1767888348100,-278.92668996,0.00010739,2]
[401024339,1767888348120,-221.07331004,0.00010739,2]
[401024340,1767888348129,-278.92668996,0.00010739,2]
[401024341,1767888348141,-221.07331004,0.00010739,2]
[401024342,1767888348150,-278.92668996,0.00010739,2]
[401024343,1767888348166,-221.07331004,0.00010739,2]
[401024344,1767888348175,-217.80872116,0.00010739,2]
[401024346,1767888441243,500.0,0.000176,30]
[401024352,1767888489297,-166.66,0.0001064,2]
[401024353,1767888491338,-221.1910972,0.0001064,2]
[401024354,1767888494011,-177.00021117,0.0001064,2]
[401024355,1767888495599,-258.65715323,0.0001064,2]
[401024356,1767888498260,-345.24356056,0.0001064,2]
[401024357,1767888501948,-294.3386898,0.0001064,2]
[401024358,1767888505025,-250.0,0.0001064,2]
[401024359,1767888506568,-163.53488248,0.0001064,2]
[401024360,1767888510934,-356.74382834,0.0001064,2]
[401024361,1767888513546,-303.91570653,0.0001064,2]
[401024362,1767888516492,-375.24231408,0.0001064,2]
[401024363,1767888521437,-195.69246571,0.0001064,2]
[401024364,1767888525536,-187.54007036,0.0001064,2]
[401024365,1767888527061,-188.929543,0.0001064,2]
[401024366,1767888529050,-246.79437214,0.0001064,2]
[401024367,1767888530530,-463.94909953,0.0001064,2]
[401024368,1767888531969,-257.49477926,0.0001064,2]
[401024369,1767888535131,-200.09909953,0.0001064,2]
[401024370,1767888537124,-193.22145249,0.0001064,2]
[401024371,1767888540144,-252.88906652,0.0001064,2]
[401024372,1767888542815,-155.62838882,0.00010639,2]
[401024373,1767888545408,-144.37161118,0.00010639,2]
[401024374,1767888545432,-150.0,0.00010639,2]
[401024375,1767888545456,-13.59632985,0.00010639,2]
[401024376,1767888546838,-182.13039526,0.00010639,2]
[401024377,1767888550085,-104.27327489,0.00010639,2]
[401024378,1767888550108,-51.35511393,0.00010639,2]
[401024379,1767888552146,-111.12082886,0.00010639,2]
[401024380,1767888552174,-216.96061982,0.0001064,2]
[401024381,1767888555515,-299.90090047,0.0001064,2]
[401024382,1767888557157,-200.0,0.0001064,2]
[401024383,1767888558578,-253.42816147,0.0001064,2]
[401024384,1767888560068,-233.5871163,0.0001064,2]
[401024388,1767888567116,-5387.571952,0.0001064,2]
[401024389,1767888570596,-281.01531836,0.0001064,2]
[401024396,1767888631737,-756.71092669,0.00010624,2]
[401024397,1767888631805,-108.02050352,0.00010624,2]
[401024398,1767888631815,-237.0,0.00010624,2]
[401024399,1767888631825,-522.27414983,0.00010638,2]
[401024400,1767888631875,-677.72585017,0.00010638,2]
[401024401,1767888631884,-300.0,0.00010638,2]
[401024402,1767888631894,-543.36765913,0.00010639,2]
[401024403,1767888631903,-119.50302525,0.00010639,2]
[401024404,1767888631915,-380.49697475,0.00010639,2]
[401024405,1767888631924,-199.86363958,0.00010639,2]
[401024406,1767888631935,-300.13636042,0.00010639,2]
[401024407,1767888631945,-500.0,0.00010639,2]
[401024408,1767888631954,-344.82722723,0.00010639,2]
[401024409,1767888631966,-155.17277277,0.00010639,2]
[401024410,1767888631975,-318.14722723,0.00010639,2]
[401024411,1767888631987,-181.85277277,0.00010639,2]
[401024412,1767888631996,-500.0,0.00010639,2]
[401024413,1767888632005,-500.0,0.00010639,2]
[401024414,1767888632014,-500.0,0.00010639,2]
[401024415,1767888632023,-136.01622529,0.00010639,2]
[401024416,1767888632035,-363.98377471,0.00010639,2]
[401024417,1767888632044,-500.0,0.00010639,2]
[401024419,1767888632053,-500.0,0.00010639,2]
[401024421,1767888632062,-104.68678607,0.00010639,2]
[401024423,1767888632073,-339.75260614,0.00010639,2]
[401024428,1767888632112,-55.56060779,0.00010639,2]
[401024430,1767888632121,-500.0,0.00010639,2]
[401024432,1767888632130,-418.61824065,0.00010639,2]
[401024434,1767888632142,-20.41690774,0.00010639,2]
[401024436,1767888632151,-500.0,0.00010639,2]
[401024438,1767888632160,-500.0,0.00010639,2]
[401024440,1767888632170,-500.0,0.00010639,2]
[401024442,1767888632179,-500.0,0.00010639,2]
[401024444,1767888632188,-52.87898902,0.00010639,2]
[401024447,1767888632199,-447.12101098,0.00010639,2]
[401024448,1767888632209,-500.0,0.00010639,2]
[401024450,1767888632219,-130.0023181,0.00010639,2]
[401024452,1767888632230,-258.20010086,0.00010639,2]
[401024455,1767888632245,-111.79758104,0.00010639,2]
[401024457,1767888632254,-500.0,0.00010639,2]
[401024459,1767888632263,-500.0,0.00010639,2]
[401024461,1767888632273,-500.0,0.00010639,2]
[401024463,1767888632283,-3194.50239896,0.0001064,2]
[401024498,1767888637806,-15044.12097411,0.0001064,2]
[401024499,1767888637818,-2437.99103874,0.0001064,2]
[401024500,1767888637830,-1887.99999,0.0001064,2]
[401024501,1767888637841,-773.9298584,0.0001064,2]
[401024502,1767888637980,-3419.43099117,0.0001064,2]
[401024503,1767888637992,-5325.0,0.0001064,2]
[401024504,1767888638003,-1931.45747354,0.0001064,2]
[401024505,1767888638158,-479.70037815,0.0001064,2]
[401024676,1767888640126,-953534.26543658,0.0001064,2]
[401024678,1767888640135,-7109.75,0.00010679,2]
[401024680,1767888640145,-246.66180949,0.00010714,2]
[401024682,1767888640154,-554505.22517,0.00010724,2]
[401024684,1767888640163,-3421.9101777,0.00010724,2]
[401024686,1767888640173,-151.0,0.00010735,2]
[401024688,1767888640182,-151.0,0.00010735,2]
[401024690,1767888640191,-151.0,0.00010735,2]
[401024692,1767888640201,-151.0,0.00010735,2]
[401024694,1767888640211,-151.0,0.00010735,2]
[401024696,1767888640220,-151.0,0.00010735,2]
[401024698,1767888640230,-151.0,0.00010735,2]
[401024700,1767888640239,-151.0,0.00010735,2]
[401024702,1767888640248,-151.0,0.00010735,2]
[401024704,1767888640257,-151.0,0.00010735,2]
[401024706,1767888640266,-151.0,0.00010735,2]
[401024708,1767888640276,-250.0,0.00010738,2]
[401024710,1767888640285,-150.99,0.0001074,2]
[401024712,1767888640295,-7213.28,0.0001074,2]
[401024714,1767888640304,-9999.99,0.0001074,2]
[401024716,1767888640315,-218.03096144,0.00010741,2]
[401024718,1767888640324,-152.621673,0.00010741,2]
[401024720,1767888640334,-151.0,0.00010741,2]
[401024722,1767888640343,-747.97129742,0.000109,2]
[401024724,1767888640352,-747.97129742,0.000109,2]
[401024726,1767888640362,-298.6,0.00010937,2]
[401024728,1767888640371,-150.0,0.00010959,2]
[401024730,1767888640380,-150.0,0.00010959,2]
[401024732,1767888640392,-3362.12953678,0.00011099,2]
[401024734,1767888640402,-271.8,0.00011102,2]
[401024736,1767888640411,-1336.36,0.00011281,2]
[401024738,1767888640420,-500.0,0.0001144,2]
[401024740,1767888640429,-170.3668759,0.0001148,2]
[401024742,1767888640439,-3362.12953677,0.00011641,2]
[401024743,1767888640448,-747.97129739,0.00011663,2]
[401024745,1767888640457,-255.0,0.00011671,2]
[401024747,1767888640466,-6889.17609608,0.00011682,2]
[401024749,1767888640476,-195.0,0.00011686,2]
[401024751,1767888640485,-250.0,0.00011686,2]
[401024753,1767888640494,-300.0,0.00011686,2]
[401024755,1767888640503,-300.0,0.00011686,2]
[401024757,1767888640512,-300.0,0.00011686,2]
[401024759,1767888640521,-300.0,0.00011686,2]
[401024761,1767888640530,-300.0,0.00011686,2]
[401024763,1767888640539,-420.0,0.00011694,2]
[401024765,1767888640549,-1680.0,0.00011702,2]
[401024767,1767888640558,-195.0,0.00011703,2]
[401024769,1767888640567,-195.0,0.00011704,2]
[401024771,1767888640576,-195.0,0.00011796,2]
[401024773,1767888640585,-195.0,0.00011812,2]
[401024775,1767888640595,-250.0,0.00011812,2]
[401024777,1767888640604,-325.85735244,0.00011856,2]
[401024779,1767888640614,-35229.56,0.00011944,2]
[401024781,1767888640624,-1500.0,0.00012219,2]
[401024783,1767888640633,-123726.8396953,0.00012374,2]
[401024785,1767888640642,-3362.12953677,0.00012424,2]
[401024787,1767888640651,-747.97129739,0.00012703,2]
[401024789,1767888640660,-27607.1895558,0.00012742,2]
[401024791,1767888640669,-433.0,0.00012799,2]
[401024793,1767888640678,-587.0,0.00012855,2]
[401024795,1767888640687,-2351.0,0.00012872,2]
[401024797,1767888640697,-325.85735244,0.00013065,2]
[401024799,1767888640707,-3362.12953677,0.00013206,2]
[401024801,1767888640716,-500.0,0.00013698,2]
[401024803,1767888640725,-500.0,0.00013698,2]
[401024805,1767888640734,-502.10445571,0.00013698,2]
[401024807,1767888640744,-174.0797667,0.00013698,2]
[401024809,1767888640753,-500.0,0.00013698,2]
[401024840,1767888641029,-500.0,0.00013698,2]
[401024842,1767888641038,-508.0483956,0.00013698,2]
[401024844,1767888641047,-500.0,0.00013698,2]
[401024846,1767888641057,-518.56533718,0.00013698,2]
[401024848,1767888641066,-500.0,0.00013698,2]
[401024850,1767888641075,-500.0,0.00013698,2]
[401024852,1767888641084,-500.0,0.00013698,2]
[401024854,1767888641094,-525.35060905,0.00013698,2]
[401024856,1767888641103,-500.0,0.00013698,2]
[401024858,1767888641113,-500.0,0.00013698,2]
[401024860,1767888641122,-500.0,0.00013698,2]
[401024862,1767888641131,-500.0,0.00013698,2]
[401024864,1767888641141,-500.0,0.00013698,2]
[401024866,1767888641151,-500.0,0.00013698,2]
[401024868,1767888641160,-500.0,0.00013698,2]
[401024870,1767888641170,-500.0,0.00013698,2]
[401024872,1767888641179,-500.0,0.00013698,2]
[401024874,1767888641188,-500.0,0.00013698,2]
[401024876,1767888641197,-500.0,0.00013698,2]
[401024878,1767888641208,-500.0,0.00013698,2]
[401024880,1767888641217,-500.0,0.00013698,2]
[401024882,1767888641227,-500.0,0.00013698,2]
[401024885,1767888641237,-500.0,0.00013698,2]
[401024887,1767888641246,-500.0,0.00013698,2]
[401024888,1767888641255,-500.0,0.00013698,2]
[401024891,1767888641265,-500.0,0.00013698,2]
[401024893,1767888641274,-500.0,0.00013698,2]
[401024895,1767888641283,-500.0,0.00013698,2]
[401024896,1767888641293,-621.72362606,0.00013698,2]
[401024899,1767888641302,-500.0,0.00013698,2]
[401024900,1767888641311,-500.0,0.00013698,2]
[401024903,1767888641324,-500.0,0.00013698,2]
[401024904,1767888641334,-500.0,0.00013698,2]
[401024906,1767888641343,-500.0,0.00013698,2]
[401024908,1767888641352,-500.0,0.00013698,2]
[401024910,1767888641362,-500.0,0.00013698,2]
[401024912,1767888641371,-500.0,0.00013698,2]
[401024914,1767888641381,-500.0,0.00013698,2]
[401024917,1767888641392,-500.0,0.00013698,2]
[401024919,1767888641401,-500.0,0.00013698,2]
[401024921,1767888641411,-500.0,0.00013698,2]
[401024922,1767888641421,-502.28702111,0.00013698,2]
[401024925,1767888641430,-500.0,0.00013698,2]
[401024926,1767888641439,-500.0,0.00013698,2]
[401024928,1767888641448,-845.98,0.00013698,2]
[401024930,1767888641458,-500.0,0.00013698,2]
[401024932,1767888641468,-500.0,0.00013698,2]
[401024934,1767888641477,-500.0,0.00013698,2]
[401024936,1767888641486,-500.0,0.00013698,2]
[401024938,1767888641496,-500.0,0.00013698,2]
[401024940,1767888641505,-500.0,0.00013698,2]
[401024943,1767888641514,-500.0,0.00013698,2]
[401024945,1767888641527,-500.0,0.00013698,2]
[401024947,1767888641536,-500.0,0.00013698,2]
[401024949,1767888641545,-500.0,0.00013698,2]
[401024951,1767888641555,-500.0,0.00013698,2]
[401024953,1767888641564,-500.0,0.00013698,2]
[401024955,1767888641573,-500.0,0.00013698,2]
[401024957,1767888641582,-500.0,0.00013698,2]
[401024959,1767888641592,-500.0,0.00013698,2]
[401024961,1767888641601,-500.0,0.00013698,2]
[401024963,1767888641611,-200.0,0.00013699,2]
[401024965,1767888641620,-747.97129739,0.00013742,2]
[401024967,1767888641629,-500.0,0.0001393,2]
[401024969,1767888641639,-500.0,0.0001393,2]
[401024971,1767888641649,-500.0,0.0001393,2]
[401024973,1767888641658,-500.0,0.0001393,2]
[401024975,1767888641667,-845.98,0.00013972,2]
[401024977,1767888641676,-3362.12953677,0.00013988,2]
[401024979,1767888641685,-736.0,0.00014043,2]
[401024981,1767888641694,-250.0,0.00014058,2]
[401024983,1767888641704,-823.0,0.00014132,2]
[401024985,1767888641714,-3292.0,0.00014159,2]
[401024987,1767888641726,-845.98,0.00014246,2]
[401024989,1767888641735,-325.85735244,0.00014274,2]
[401024991,1767888641745,-845.98,0.0001452,2]
[401024993,1767888641754,-151.0,0.00014727,2]
[401024995,1767888641763,-500.0,0.00014762,2]
[401024997,1767888641772,-500.0,0.00014762,2]
[401024999,1767888641782,-500.0,0.00014762,2]
[401025001,1767888641791,-516.18277591,0.00014762,2]
[401025003,1767888641800,-500.0,0.00014762,2]
[401025005,1767888641810,-500.0,0.00014762,2]
[401025007,1767888641819,-500.0,0.00014762,2]
[401025009,1767888641828,-500.0,0.00014763,2]
[401025011,1767888641838,-501.08291115,0.00014763,2]
[401025013,1767888641847,-500.0,0.00014763,2]
[401025015,1767888641856,-500.0,0.00014763,2]
[401025017,1767888641866,-500.51555347,0.00014763,2]
[401025019,1767888641875,-500.0,0.00014763,2]
[401025021,1767888641884,-500.0,0.00014763,2]
[401025023,1767888641894,-501.54454633,0.00014763,2]
[401025025,1767888641903,-225.04435093,0.00014763,2]
[401025028,1767888641915,-500.0,0.00014763,2]
[401025030,1767888641925,-500.0,0.00014763,2]
[401025031,1767888641934,-500.0,0.00014763,2]
[401025033,1767888641943,-500.0,0.00014763,2]
[401025035,1767888641953,-519.74194078,0.00014763,2]
[401025037,1767888641962,-500.0,0.00014763,2]
[401025039,1767888641972,-500.0,0.00014763,2]
[401025041,1767888641981,-500.0,0.00014763,2]
[401025043,1767888641990,-500.0,0.00014763,2]
[401025045,1767888641999,-500.0,0.00014763,2]
[401025047,1767888642009,-3362.12953677,0.00014771,2]
[401025049,1767888642018,-747.97129739,0.00014782,2]
[401025051,1767888642027,-845.98,0.00014794,2]
[401025053,1767888642036,-1452.78,0.0001497,2]
[401025055,1767888642046,-2113.75,0.0001497,2]
[401025057,1767888642055,-845.98,0.00015068,2]
[401025059,1767888642064,-802.24106746,0.0001531,2]
[401025061,1767888642073,-1000.0,0.0001531,2]
[401025063,1767888642083,-1000.0,0.0001531,2]
[401025065,1767888642092,-879.40330386,0.0001531,2]
[401025067,1767888642101,-1000.0,0.0001531,2]
[401025069,1767888642112,-633.20600999,0.0001531,2]
[401025071,1767888642122,-799.73155764,0.0001531,2]
[401025073,1767888642132,-845.98,0.00015342,2]
[401025075,1767888642141,-1252.0,0.00015405,2]
[401025078,1767888642151,-15579.0,0.0001548,2]
[401025080,1767888642160,-325.85735244,0.00015482,2]
[401025082,1767888642170,-1152.0,0.00015535,2]
[401025084,1767888642181,-3362.12953677,0.00015553,2]
[401025086,1767888642190,-4609.0,0.00015575,2]
[401025088,1767888642200,-846.00073216,0.00015616,2]
[401025090,1767888642209,-1716.59998856,0.0001564,2]
[401025092,1767888642218,-747.97129739,0.00015821,2]
[401025094,1767888642227,-157.72323008,0.00015857,2]
[401025096,1767888642238,-1500.0,0.00015858,2]
[401025098,1767888642247,-1500.0,0.00015858,2]
[401025100,1767888642256,-1500.0,0.00015858,2]
[401025102,1767888642265,-1000.0,0.00015918,2]
[401025104,1767888642275,-152.0,0.00016094,3]
[401025106,1767888642285,-7747.65,0.00016116,2]
[401025108,1767888642295,-180.0,0.00016128,2]
[401025110,1767888642304,-260.66325265,0.0001613,2]
[401025112,1767888642320,-1000.0,0.00016272,2]
[401025114,1767888642330,-3362.12953677,0.00016335,2]
[401025116,1767888642339,-1699.80942896,0.00016406,2]
[401025118,1767888642349,-2000.0,0.00016406,2]
[401025120,1767888642359,-2000.0,0.00016406,2]
[401025122,1767888642368,-500.0,0.00016438,2]
[401025124,1767888642378,-500.0,0.00016438,2]
[401025126,1767888642388,-500.0,0.00016438,2]
[401025128,1767888642397,-500.0,0.00016438,2]
[401025130,1767888642407,-500.0,0.00016438,2]
[401025132,1767888642418,-500.0,0.00016438,2]
[401025134,1767888642428,-500.0,0.00016438,2]
[401025136,1767888642439,-500.0,0.00016438,2]
[401025138,1767888642448,-500.0,0.00016438,2]
[401025140,1767888642458,-500.0,0.00016438,2]
[401025142,1767888642468,-500.0,0.00016438,2]
[401025144,1767888642477,-500.0,0.00016438,2]
[401025146,1767888642487,-500.0,0.00016438,2]
[401025148,1767888642496,-500.0,0.00016438,2]
[401025151,1767888642506,-500.0,0.00016438,2]
[401025153,1767888642526,-500.0,0.00016438,2]
[401025155,1767888642536,-500.0,0.00016438,2]
[401025157,1767888642545,-500.0,0.00016438,2]
[401025159,1767888642555,-500.0,0.00016438,2]
[401025162,1767888642565,-500.0,0.00016438,2]
[401025166,1767888642575,-500.0,0.00016438,2]
[401025168,1767888642585,-500.0,0.00016438,2]
[401025170,1767888642596,-500.0,0.00016438,2]
[401025172,1767888642606,-500.0,0.00016438,2]
[401025174,1767888642616,-500.0,0.00016438,2]
[401025176,1767888642626,-500.0,0.00016438,2]
[401025178,1767888642636,-500.0,0.00016438,2]
[401025180,1767888642647,-500.0,0.00016438,2]
[401025182,1767888642657,-500.0,0.00016438,2]
[401025184,1767888642667,-354.93331674,0.00016438,2]
[401025186,1767888642678,-500.0,0.00016438,2]
[401025188,1767888642688,-500.0,0.00016438,2]
[401025190,1767888642698,-500.0,0.00016438,2]
[401025192,1767888642708,-500.0,0.00016438,2]
[401025194,1767888642719,-500.0,0.00016438,2]
[401025196,1767888642729,-500.0,0.00016438,2]
[401025198,1767888642739,-500.0,0.00016438,2]
[401025200,1767888642750,-500.0,0.00016438,2]
[401025203,1767888642760,-500.0,0.00016438,2]
[401025204,1767888642769,-500.0,0.00016438,2]
[401025207,1767888642781,-20339.12,0.00016438,2]
[401025209,1767888642791,-1000.0,0.00016515,2]
[401025211,1767888642800,-914.0,0.00016538,2]
[401025213,1767888642810,-1204.815,0.00016538,2]
[401025215,1767888642820,-2436.0,0.00016538,2]
[401025217,1767888642830,-4819.0,0.00016538,2]
[401025219,1767888642840,-565.0,0.00016538,2]
[401025221,1767888642850,-150.0,0.00016542,2]
[401025223,1767888642860,-150.0,0.00016542,2]
[401025225,1767888642870,-200.0,0.00016542,2]
[401025227,1767888642881,-150.0,0.00016542,2]
[401025229,1767888642891,-150.0,0.00016542,2]
[401025231,1767888642901,-150.0,0.00016542,2]
[401025233,1767888642911,-170.0,0.00016542,2]
[401025235,1767888642921,-150.0,0.00016542,2]
[401025237,1767888642931,-150.0,0.00016542,2]
[401025239,1767888642941,-150.0,0.00016542,2]
[401025241,1767888642951,-150.0,0.00016542,2]
[401025243,1767888642962,-151.047,0.00016542,2]
[401025245,1767888642971,-151.0,0.00016542,2]
[401025248,1767888642982,-499.0,0.00016542,2]
[401025250,1767888642991,-772.0,0.00016542,2]
[401025252,1767888643001,-307.0,0.00016542,2]
[401025254,1767888643011,-312.0,0.00016542,2]
[401025256,1767888643020,-528.0,0.00016542,2]
[401025258,1767888643030,-157.72323008,0.00016578,2]
[401025260,1767888643040,-3417.6,0.00016671,2]
[401025262,1767888643050,-325.85735244,0.00016691,2]
[401025264,1767888643060,-3417.6,0.00016792,2]
[401025266,1767888643069,-152.0,0.00016852,4]
[401025268,1767888643079,-693.3407598,0.000169,2]
[401025270,1767888643088,-2129.0,0.00016905,2]
[401025272,1767888643098,-3417.6,0.00016913,2]
[401025274,1767888643108,-2500.0,0.00016954,2]
[401025276,1767888643118,-193.73266833,0.00016954,2]
[401025278,1767888643128,-356.0,0.00016959,2]
[401025280,1767888643137,-7567.0,0.00016959,2]
[401025282,1767888643148,-150.0,0.00016977,2]
[401025284,1767888643158,-608979.25,0.00016986,2]
[401025286,1767888643168,-200.0,0.00017,2]
[401025288,1767888643178,-3032.44949746,0.00017,2]
[401025290,1767888643187,-3417.6,0.00017033,2]
[401025292,1767888643197,-1613.0,0.00017077,2]
[401025294,1767888643207,-300.0,0.00017099,2]
[401025296,1767888643217,-322.6107,0.00017099,2]
[401025298,1767888643226,-151.0,0.00017099,2]
[401025300,1767888643236,-721.12765535,0.00017099,2]
[401025303,1767888643247,-1316.20759869,0.00017099,2]
[401025305,1767888643256,-500.0,0.00017099,2]
[401025307,1767888643267,-500.0,0.00017099,2]
[401025309,1767888643276,-1500.0,0.00017099,2]
[401025311,1767888643285,-500.0,0.00017099,2]
[401025313,1767888643294,-1500.0,0.00017099,2]
[401025315,1767888643303,-500.0,0.00017099,2]
[401025317,1767888643313,-1500.0,0.00017099,2]
[401025319,1767888643325,-500.0,0.00017099,2]
[401025321,1767888643335,-1500.0,0.00017099,2]
[401025323,1767888643344,-151.0,0.00017099,2]
[401025325,1767888643354,-500.0,0.00017099,2]
[401025327,1767888643365,-1500.0,0.00017099,2]
[401025329,1767888643376,-162.7023203,0.00017099,2]
[401025331,1767888643385,-500.0,0.00017099,2]
[401025333,1767888643396,-1500.0,0.00017099,2]
[401025335,1767888643405,-500.0,0.00017099,2]
[401025337,1767888643415,-988.0,0.00017099,2]
[401025339,1767888643425,-1500.0,0.00017099,2]
[401025341,1767888643434,-500.0,0.00017099,2]
[401025343,1767888643443,-1500.0,0.00017099,2]
[401025345,1767888643453,-500.0,0.00017099,2]
[401025347,1767888643462,-1500.0,0.00017099,2]
[401025349,1767888643471,-500.0,0.00017099,2]
[401025351,1767888643482,-1500.0,0.00017099,2]
[401025353,1767888643492,-1500.0,0.00017099,2]
[401025355,1767888643502,-250.0,0.00017099,2]
[401025357,1767888643512,-250.0,0.00017099,2]
[401025359,1767888643522,-250.0,0.00017099,2]
[401025361,1767888643531,-151.0,0.00017099,2]
[401025363,1767888643540,-250.0,0.00017099,2]
[401025365,1767888643550,-250.0,0.00017099,2]
[401025367,1767888643559,-500.0,0.00017099,2]
[401025369,1767888643569,-500.0,0.00017099,2]
[401025371,1767888643579,-250.0,0.00017099,2]
[401025373,1767888643589,-500.0,0.00017099,2]
[401025375,1767888643598,-250.0,0.00017099,2]
[401025377,1767888643608,-500.0,0.00017099,2]
[401025379,1767888643617,-250.0,0.00017099,2]
[401025381,1767888643627,-500.0,0.00017099,2]
[401025383,1767888643637,-250.0,0.00017099,2]
[401025385,1767888643646,-500.0,0.00017099,2]
[401025387,1767888643657,-500.0,0.00017099,2]
[401025388,1767888643667,-250.0,0.00017099,2]
[401025389,1767888643678,-574.12855637,0.00017099,2]
[401025390,1767888643687,-500.0,0.00017099,2]
[401025391,1767888643698,-500.0,0.00017099,2]
[401025392,1767888643709,-250.0,0.00017099,2]
[401025393,1767888643720,-500.0,0.00017099,2]
[401025394,1767888643730,-500.0,0.00017099,2]
[401025395,1767888643740,-500.0,0.00017099,2]
[401025396,1767888643751,-500.0,0.00017099,2]
[401025397,1767888643761,-250.0,0.00017099,2]
[401025398,1767888643771,-500.0,0.00017099,2]
[401025399,1767888643781,-500.0,0.00017099,2]
[401025400,1767888643791,-250.0,0.00017099,2]
[401025401,1767888643800,-500.0,0.00017099,2]